bitfinex-derivatives/quotes_BTCF0:USTF0_20250416
["timestamp","ask_amount","ask_price","bid_price","bid_amount"]
[1744817180033,0.005,85294.0,85282.0,0.1172674]
[1744817180233,0.005,85294.0,85284.0,0.1172646]
[1744817180433,0.005,85294.0,85293.0,0.1172522]
[1744817180634,0.005,85294.0,85293.0,0.4780522]
[1744817180934,0.1222509,85294.0,85293.0,0.3608]
[1744817181135,0.1223309,85294.0,85293.0,0.3608]
[1744817181546,0.00508,85294.0,85293.0,0.56926166]
[1744817181741,0.1223309,85294.0,85293.0,0.3608]
[1744817182044,0.0586227,85298.0,85293.0,1.37149177]
[1744817182231,0.1,85300.0,85293.0,1.37149177]
[1744817182435,0.1,85300.0,85299.0,0.117244]
[1744817182742,0.10008,85300.0,85299.0,0.117244]
[1744817182942,0.1172509,85294.0,85293.0,1.73229177]
[1744817183146,0.38681344,85317.0,85293.0,1.98229177]
[1744817183342,0.00010801,85312.0,85306.0,0.1172332]
[1744817183644,0.0586142,85311.0,85303.0,0.0586192]
[1744817183837,0.11733411,85312.0,85311.0,0.4780275]
[1744817184038,0.1172261,85312.0,85311.0,0.1172275]
[1744817184343,0.1173061,85312.0,85311.0,0.1172275]
[1744817184646,0.05871801,85317.0,85315.0,0.1172208]
[1744817184847,0.1172288,85311.0,85310.0,0.1172287]
[1744817185042,0.1172288,85311.0,85310.0,0.4780287]
[1744817185247,0.1172288,85311.0,85303.0,0.00017586]
[1744817185248,0.0586938,85311.0,85304.0,0.1172371]
[1744817185544,0.1172371,85304.0,85303.0,0.00017586]
[1744817185734,0.1172371,85304.0,85303.0,0.11741436]
[1744817186747,0.1758534,85306.0,85305.0,0.1172358]
[1744817187449,0.0586938,85311.0,85303.0,0.00017586]
[1744817187450,8e-05,85311.0,85310.0,0.1172289]
[1744817187642,0.1173075,85311.0,85310.0,0.1172289]
[1744817187949,0.1172344,85307.0,85306.0,0.1172338]
[1744817188345,0.1172287,85311.0,85310.0,0.1172277]
[1744817188552,0.1172218,85316.0,85315.0,0.1172212]
[1744817188741,0.1758322,85316.0,85315.0,0.3608]
[1744817189443,0.1172358,85305.0,85304.0,0.3608]
[1744817189840,0.20844526,85305.0,85304.0,0.3608]
[1744817190937,0.1172509,85294.0,85293.0,0.82827291]
[1744817191743,0.3672509,85294.0,85293.0,0.82827291]
[1744817192749,0.1172509,85294.0,85293.0,0.82827291]
[1744817193546,0.1173309,85294.0,85293.0,0.82827291]
[1744817194550,0.3673309,85294.0,85293.0,0.77356841]
[1744817194847,0.1172784,85274.0,85266.0,0.3608]
[1744817196350,0.117288,85267.0,85266.0,0.3608]
[1744817196947,0.117288,85267.0,85247.0,0.0586574]
[1744817196948,0.1173169,85246.0,85243.0,0.3608]
[1744817197144,0.1173169,85246.0,85245.0,0.09257946]
[1744817197349,0.0586513,85257.0,85256.0,0.1173031]
[1744817197549,0.0586513,85257.0,85256.0,0.3608]
[1744817197944,0.0586513,85257.0,85256.0,0.45200946]
[1744817198151,0.00017586,85265.0,85264.0,0.1172921]
[1744817198452,0.00026573,85300.0,85264.0,0.5308]
[1744817198646,0.41266573,85300.0,85292.0,0.4780536]
[1744817198848,0.005,85294.0,85293.0,0.1772513]
[1744817199058,0.1758495,85309.0,85308.0,0.1172312]
[1744817199244,0.00010801,85312.0,85301.0,0.0586204]
[1744817199443,0.1172364,85305.0,85304.0,0.117235]
[1744817199648,0.0586184,85305.0,85304.0,0.0585]
[1744817200544,0.0586184,85305.0,85304.0,0.1757371]
[1744817200745,0.0586166,85307.0,85306.0,0.1172344]
[1744817200954,0.1172358,85305.0,85304.0,0.0585]
[1744817201551,0.0586966,85307.0,85306.0,0.1172344]
[1744817201552,8e-05,85307.0,85306.0,0.1172344]
[1744817202153,0.1758451,85310.0,85309.0,0.1172303]
[1744817202353,0.00010801,85319.0,85314.0,0.1172234]
[1744817202655,0.1172234,85314.0,85313.0,0.1201]
[1744817203250,0.1173034,85314.0,85313.0,0.1201]
[1744817205364,0.1172289,85310.0,85309.0,0.3608]
[1744817205654,0.1172426,85300.0,85299.0,0.1188]
[1744817206458,0.0586212,85301.0,85288.0,0.3608]
[1744817206660,0.1172564,85290.0,85289.0,0.1188]
[1744817207249,0.1172564,85290.0,85265.0,0.00504307]
[1744817207250,0.1172894,85266.0,85265.0,0.00504307]
[1744817208055,0.1173694,85266.0,85265.0,0.00504307]
[1744817208665,8e-05,85266.0,85265.0,0.12233377]
[1744817208960,0.4780878,85269.0,85268.0,0.1172866]
[1744817209370,0.117288,85267.0,85266.0,0.1759328]
[1744817209550,0.117288,85267.0,85266.0,0.0586441]
[1744817209755,0.1172894,85266.0,85265.0,0.00504307]
[1744817210361,0.1172894,85266.0,85265.0,0.48313377]
[1744817210568,0.1759263,85272.0,85271.0,0.1172825]
[1744817210755,0.47353491,85300.0,85268.0,0.0586432]
[1744817210756,0.17601061,85284.0,85283.0,0.117266]
[1744817210955,0.23464381,85284.0,85283.0,0.117266]
[1744817211458,0.23464381,85284.0,85282.0,0.1263]
[1744817211459,0.117266,85283.0,85282.0,0.1263]
[1744817212055,0.117266,85283.0,85282.0,0.2435674]
[1744817212261,8e-05,85284.0,85283.0,0.117266]
[1744817212462,0.1172646,85284.0,85283.0,0.1906318]
[1744817212663,0.1172646,85284.0,85283.0,0.132]
[1744817212664,0.1173446,85284.0,85283.0,0.132]
[1744817213362,0.1173446,85284.0,85283.0,0.134]
[1744817213864,0.1173446,85284.0,85283.0,0.249266]
[1744817214071,0.1173446,85284.0,85283.0,0.250266]
[1744817214461,0.1172589,85289.0,85288.0,0.1172591]
[1744817214960,0.1172591,85288.0,85287.0,0.3608]
[1744817215561,0.1172646,85284.0,85283.0,0.001]
[1744817216172,0.2503646,85284.0,85283.0,0.001]
[1744817216470,0.117277,85275.0,85274.0,0.00017586]
[1744817217564,0.478077,85275.0,85274.0,0.00017586]
[1744817217760,0.117277,85275.0,85274.0,0.00017586]
[1744817217961,0.117357,85275.0,85274.0,0.00017586]
[1744817218362,0.478157,85275.0,85274.0,0.00017586]
[1744817219261,0.1172894,85266.0,85265.0,0.00504307]
[1744817220172,0.2536894,85266.0,85265.0,0.00504307]
[1744817220367,0.2536894,85266.0,85265.0,0.00804307]
[1744817220962,0.2345749,85269.0,85268.0,0.1172866]
[1744817221370,0.1172894,85266.0,85265.0,0.00804307]
[1744817221573,0.1172894,85266.0,85265.0,0.12533377]
[1744817221768,0.1172894,85266.0,85265.0,0.00804307]
[1744817221960,0.1759308,85268.0,85267.0,0.1172866]
[1744817222563,8e-05,85269.0,85268.0,0.1172866]
[1744817222771,8e-05,85269.0,85268.0,0.2172866]
[1744817223066,0.1758951,85286.0,85285.0,0.1172619]
[1744817223264,0.1758951,85286.0,85285.0,0.3608]
[1744817223770,0.1172729,85278.0,85277.0,0.00017586]
[1744817224067,0.5296729,85278.0,85277.0,6e-08]
[1744817224266,0.7796729,85278.0,85277.0,6e-08]
[1744817228275,0.5296729,85278.0,85277.0,6e-08]
[1744817228666,0.5296729,85278.0,85277.0,0.01000006]
[1744817228875,0.5296729,85278.0,85277.0,6e-08]
[1744817229270,8e-05,85278.0,85277.0,0.24857426]
[1744817229568,0.1172729,85278.0,85277.0,0.35857426]
[1744817229768,0.1173529,85278.0,85277.0,0.35857426]
[1744817230474,0.1173529,85278.0,85277.0,0.60857426]
[1744817230475,8e-05,85278.0,85277.0,0.60857426]
[1744817230976,0.11743186,85291.0,85290.0,0.1172564]
[1744817231178,0.00017586,85291.0,85290.0,0.1172564]
[1744817231471,0.00017586,85291.0,85290.0,0.2512564]
[1744817231672,0.00025586,85291.0,85290.0,0.2512564]
[1744817231975,0.00025586,85291.0,85290.0,0.5012564]
[1744817232479,0.11751086,85291.0,85290.0,0.5012564]
[1744817233073,0.11751086,85291.0,85290.0,0.2512564]
[1744817233376,0.11751086,85291.0,85290.0,0.136]
[1744817235473,0.11743086,85291.0,85290.0,0.136]
[1744817235678,0.11751086,85291.0,85290.0,0.136]
[1744817236068,0.11751086,85291.0,85290.0,0.134]
[1744817236777,0.11751086,85291.0,85290.0,0.136]
[1744817237470,0.11751086,85291.0,85290.0,0.135]
[1744817239475,0.11751086,85291.0,85290.0,0.001]
[1744817239779,0.1172646,85284.0,85283.0,0.3608]
[1744817240577,0.1172646,85284.0,85283.0,0.478066]
[1744817240878,0.1172646,85284.0,85283.0,0.3608]
[1744817241080,0.1172646,85284.0,85283.0,0.478066]
[1744817241276,0.1172715,85279.0,85278.0,0.1337]
[1744817241476,0.1172715,85279.0,85278.0,0.2509729]
[1744817241677,0.1173515,85279.0,85278.0,0.1337]
[1744817242384,0.1172729,85278.0,85277.0,6e-08]
[1744817242576,0.3228729,85278.0,85277.0,6e-08]
[1744817242977,0.868,85278.0,85262.0,0.13067609]
[1744817243282,0.1173114,85250.0,85245.0,0.00137]
[1744817243476,0.1173114,85250.0,85246.0,0.1351]
[1744817243678,0.1173114,85250.0,85249.0,0.4094084]
[1744817244079,0.1173114,85250.0,85249.0,0.4894084]
[1744817244274,8e-05,85250.0,85249.0,0.4894084]
[1744817244475,0.1173104,85254.0,85249.0,0.08]
[1744817244781,0.1173104,85254.0,85253.0,0.4781035]
[1744817244981,0.117304,85256.0,85255.0,0.1759534]
[1744817245184,0.117304,85256.0,85255.0,0.0586516]
[1744817245780,0.117304,85256.0,85255.0,0.1265516]
[1744817245973,0.117304,85256.0,85255.0,0.0679]
[1744817246181,0.117304,85256.0,85255.0,0.1852045]
[1744817246481,0.117304,85256.0,85255.0,0.1372]
[1744817247983,0.117304,85256.0,85255.0,0.1362]
[1744817249576,0.1173155,85247.0,85246.0,0.3608]
[1744817249787,0.1173251,85240.0,85239.0,1e-08]
[1744817249975,0.42329391,85247.0,85222.0,0.0647]
[1744817249976,0.1173486,85223.0,85222.0,0.0647]
[1744817250380,0.1173486,85223.0,85222.0,0.1820499]
[1744817250892,0.0586735,85225.0,85224.0,0.1173472]
[1744817251277,0.1173486,85223.0,85222.0,0.1323743]
[1744817252677,0.1173486,85223.0,85222.0,0.3252499]
[1744817252885,0.1173486,85223.0,85222.0,0.3162499]
[1744817253384,0.1173486,85223.0,85222.0,0.3252499]
[1744817254092,0.1760203,85225.0,85224.0,0.1173472]
[1744817254788,0.1761003,85225.0,85224.0,0.1173472]
[1744817254990,0.1934471,85225.0,85224.0,0.1173472]
[1744817256594,0.1934471,85225.0,85224.0,0.1253472]
[1744817257497,8e-05,85225.0,85224.0,0.1253472]
[1744817257983,0.1173426,85228.0,85227.0,0.1760111]
[1744817258186,0.1173426,85228.0,85227.0,0.3114111]
[1744817258501,0.1173426,85228.0,85227.0,0.1940708]
[1744817259895,0.1173596,85215.0,85200.0,0.1]
[1744817260087,0.1173596,85215.0,85209.0,0.0668]
[1744817260283,0.1173596,85215.0,85214.0,0.11753687]
[1744817260484,0.0586783,85218.0,85214.0,0.19005577]
[1744817260689,0.0706,85226.0,85225.0,0.1173458]
[1744817260991,0.1173444,85226.0,85225.0,0.176018]
[1744817261195,0.1173444,85226.0,85223.0,0.1760209]
[1744817261196,0.1173472,85224.0,85223.0,0.1760209]
[1744817261693,0.1173499,85222.0,85221.0,0.1898755]
[1744817261996,0.1173499,85222.0,85221.0,0.2485513]
[1744817262592,0.0682,85222.0,85221.0,0.2485513]
[1744817262789,0.1173499,85222.0,85221.0,0.3072263]
[1744817263693,0.1174247,85226.0,85223.0,0.0586736]
[1744817263893,0.1760173,85226.0,85225.0,0.1173458]
[1744817264296,0.1760973,85226.0,85225.0,0.2511458]
[1744817265195,0.1760973,85226.0,85225.0,0.2521458]
[1744817266007,0.1760173,85226.0,85225.0,0.2521458]
[1744817266300,0.1760973,85226.0,85225.0,0.2521458]
[1744817266602,0.02642715,85226.0,85225.0,0.2521458]
[1744817266799,0.00010801,85233.0,85230.0,0.0586688]
[1744817267095,0.00026573,85250.0,85230.0,0.0586688]
[1744817267096,0.1759562,85256.0,85255.0,0.1173045]
[1744817267299,0.0586482,85261.0,85256.0,0.1173018]
[1744817267300,0.1173029,85257.0,85256.0,0.1173018]
[1744817267487,0.1172997,85259.0,85258.0,0.117299]
[1744817267691,0.1172958,85262.0,85261.0,0.1172949]
[1744817267891,0.1172958,85262.0,85261.0,0.2072949]
[1744817268301,0.1173758,85262.0,85261.0,0.2804949]
[1744817268799,8e-05,85262.0,85261.0,0.2804949]
[1744817268992,0.005,85268.0,85267.0,0.117288]
[1744817269593,0.005,85268.0,85267.0,0.190488]
[1744817269789,0.00508,85268.0,85267.0,0.190488]
[1744817270487,0.1223666,85268.0,85267.0,0.191488]
[1744817270700,0.1223666,85268.0,85267.0,0.0742]
[1744817271102,0.2675666,85268.0,85267.0,0.0742]
[1744817271403,0.2675666,85268.0,85267.0,0.001]
[1744817272889,0.1173004,85258.0,85257.0,0.2599018]
[1744817274095,0.1173804,85258.0,85257.0,0.2599018]
[1744817275600,0.1173804,85258.0,85257.0,0.1426]
[1744817275795,0.1173804,85258.0,85257.0,0.1446]
[1744817276101,0.1173804,85258.0,85257.0,0.2619018]
[1744817276293,0.1173804,85258.0,85257.0,0.2609018]
[1744817276493,0.1173804,85258.0,85241.0,0.1173229]
[1744817276494,0.1173251,85242.0,85241.0,0.1173229]
[1744817276694,0.1173251,85242.0,85241.0,0.175984]
[1744817277100,0.0586604,85244.0,85240.0,0.0702]
[1744817277101,0.1173238,85241.0,85240.0,0.0702]
[1744817277590,0.1173238,85241.0,85240.0,0.1875251]
[1744817277790,0.1173238,85241.0,85240.0,0.1458]
[1744817278099,0.1173348,85233.0,85232.0,0.00017597]
[1744817278296,0.4781348,85233.0,85232.0,0.07577597]
[1744817278495,0.1173348,85233.0,85232.0,0.07577597]
[1744817278802,0.1173568,85217.0,85216.0,0.1925566]
[1744817279001,0.1173568,85217.0,85216.0,0.1173566]
[1744817279198,0.0586776,85219.0,85214.0,0.4781596]
[1744817279199,0.0586766,85220.0,85214.0,0.3608]
[1744817279502,0.1173596,85215.0,85214.0,0.3608]
[1744817280196,0.1173596,85215.0,85214.0,0.5049]
[1744817280705,0.1173596,85215.0,85214.0,0.6222609]
[1744817280905,0.1173596,85215.0,85214.0,0.6272609]
[1744817281502,0.11752737,85223.0,85222.0,0.1173499]
[1744817281704,0.00017597,85223.0,85222.0,0.4781499]
[1744817281904,0.1173325,85235.0,85222.0,0.4508]
[1744817282203,0.41960691,85243.0,85242.0,0.1173224]
[1744817282204,0.00014581,85243.0,85242.0,0.1173224]
[1744817282401,0.00014581,85243.0,85242.0,0.4781224]
[1744817282593,0.11746681,85243.0,85242.0,0.4781224]
[1744817283003,0.1173114,85250.0,85249.0,0.1173114]
[1744817283194,0.234631,85250.0,85249.0,0.1173114]
[1744817283394,0.0586557,85250.0,85249.0,0.1173114]
[1744817283603,0.00017597,85251.0,85250.0,0.1173114]
[1744817283906,0.00017597,85251.0,85250.0,0.2603114]
[1744817284100,0.00025597,85251.0,85250.0,0.2703114]
[1744817284803,0.00025597,85251.0,85250.0,0.5203114]
[1744817285009,0.1759449,85264.0,85263.0,0.117288]
[1744817285195,0.234593,85264.0,85263.0,0.1476]
[1744817285401,0.234608,85259.0,85240.0,0.26858504]
[1744817285601,0.234608,85259.0,85258.0,0.1172952]
[1744817285804,0.1173014,85259.0,85258.0,0.1172952]
[1744817286211,0.1173004,85258.0,85257.0,0.1456]
[1744817286406,0.11731,85251.0,85250.0,0.00017597]
[1744817286603,0.47811,85251.0,85250.0,0.00017597]
[1744817286798,0.72811,85251.0,85250.0,7e-08]
[1744817287208,0.55361,85251.0,85250.0,7e-08]
[1744817287408,0.19281,85251.0,85250.0,7e-08]
[1744817287607,0.19281,85251.0,85250.0,0.00400007]
[1744817287811,0.26691,85251.0,85250.0,0.00400007]
[1744817288209,0.98851,85251.0,85250.0,0.00400007]
[1744817288412,0.62771,85251.0,85250.0,0.00400007]
[1744817288816,0.0741,85251.0,85250.0,0.12131147]
[1744817289009,0.36126257,85259.0,85258.0,0.1173004]
[1744817289209,0.47856157,85259.0,85258.0,0.1173004]
[1744817289406,0.11731,85253.0,85252.0,0.1759581]
[1744817290413,0.11731,85253.0,85252.0,0.0586535]
[1744817290814,0.1173054,85255.0,85254.0,0.1173045]
[1744817291211,0.1173854,85255.0,85254.0,0.1173045]
[1744817293110,0.1173854,85255.0,85254.0,0.1183045]
[1744817293612,8e-05,85255.0,85254.0,0.1183045]
[1744817294020,0.1172937,85263.0,85262.0,0.1172949]
[1744817294322,0.00010801,85264.0,85263.0,0.1172935]
[1744817294514,0.00017597,85267.0,85266.0,0.1172894]
[1744817295016,0.11746397,85267.0,85266.0,0.1172894]
[1744817295720,0.11754397,85267.0,85266.0,0.1172894]
[1744817295911,0.47834397,85267.0,85266.0,0.1172894]
[1744817296307,0.0586501,85259.0,85256.0,0.3608]
[1744817296518,0.1173045,85255.0,85250.0,7e-08]
[1744817296912,0.11731,85251.0,85250.0,7e-08]
[1744817297720,0.19091,85251.0,85250.0,7e-08]
[1744817299435,0.44091,85251.0,85250.0,7e-08]
[1744817299631,0.44691,85251.0,85250.0,7e-08]
[1744817300229,0.85331,85251.0,85250.0,7e-08]
[1744817300430,0.85831,85251.0,85250.0,7e-08]
[1744817300826,0.85931,85251.0,85250.0,7e-08]
[1744817305229,0.93591,85251.0,85250.0,7e-08]
[1744817305937,0.68591,85251.0,85250.0,7e-08]
[1744817306434,0.68599,85251.0,85250.0,7e-08]
[1744817307833,0.68499,85251.0,85250.0,7e-08]
[1744817308036,0.1173375,85231.0,85230.0,0.0736]
[1744817308236,0.4781375,85231.0,85230.0,0.0736]
[1744817308437,0.1173554,85218.0,85214.0,0.0746]
[1744817308636,0.1173554,85218.0,85217.0,0.4781568]
[1744817309841,0.1173554,85218.0,85217.0,0.5517568]
[1744817310628,0.1173554,85218.0,85217.0,0.5567568]
[1744817312544,0.1173554,85218.0,85217.0,0.6296568]
[1744817312749,0.1173554,85218.0,85217.0,0.5123]
[1744817313047,0.1173554,85218.0,85217.0,0.2688568]
[1744817313540,0.1174354,85218.0,85217.0,0.2688568]
[1744817313936,0.1173554,85218.0,85217.0,0.2688568]
[1744817314137,0.1174354,85218.0,85217.0,0.2688568]
[1744817315544,0.1174354,85218.0,85217.0,0.1515]
[1744817316546,0.1174354,85218.0,85217.0,0.2688568]
[1744817316750,0.1174354,85218.0,85217.0,0.1515]
[1744817317252,0.1174354,85218.0,85217.0,0.2688568]
[1744817317451,0.1174354,85218.0,85217.0,0.1515]
[1744817318149,0.1174354,85218.0,85217.0,0.2688568]
[1744817319541,0.1174354,85218.0,85217.0,0.1515]
[1744817319852,0.1174354,85218.0,85217.0,0.2688568]
[1744817321755,0.1173473,85224.0,85223.0,0.1760194]
[1744817321948,0.1173473,85224.0,85223.0,0.4019194]
[1744817322146,0.1173473,85224.0,85223.0,0.2845736]
[1744817322355,0.4781473,85224.0,85223.0,0.1505]
[1744817322858,0.4782273,85224.0,85223.0,0.1505]
[1744817323057,0.4782273,85224.0,85223.0,0.1535]
[1744817323757,0.5567273,85224.0,85223.0,0.1535]
[1744817324148,0.5567273,85224.0,85213.0,0.00504615]
[1744817324149,0.1173609,85214.0,85213.0,0.00504615]
[1744817324349,0.4781609,85214.0,85213.0,0.00504615]
[1744817324555,0.4194811,85214.0,85210.0,0.0788]
[1744817324749,0.1173651,85211.0,85210.0,0.0788]
[1744817326255,0.1173651,85211.0,85210.0,0.1961665]
[1744817326654,0.1173651,85211.0,85210.0,0.2011665]
[1744817327153,0.1173634,85213.0,85212.0,0.1173623]
[1744817327349,0.1760263,85223.0,85222.0,0.1173499]
[1744817327951,0.5368263,85223.0,85222.0,0.1173499]
[1744817328155,0.5369063,85223.0,85222.0,0.1512]
[1744817328562,0.5369063,85223.0,85222.0,0.2685499]
[1744817328756,0.1761063,85223.0,85222.0,0.2685499]
[1744817328956,8e-05,85223.0,85222.0,0.2685499]
[1744817329556,0.11752147,85226.0,85225.0,0.1173458]
[1744817329762,0.00017597,85226.0,85225.0,0.2273458]
[1744817329951,0.3608,85240.0,85238.0,0.1173279]
[1744817329952,0.1173277,85239.0,85238.0,0.1173279]
[1744817330152,0.00514581,85242.0,85241.0,0.1173238]
[1744817330360,0.005,85242.0,85241.0,0.1173238]
[1744817330661,0.1224024,85242.0,85241.0,0.1173238]
[1744817331756,0.1223224,85242.0,85241.0,0.1173238]
[1744817332364,0.1224024,85242.0,85241.0,0.1173238]
[1744817333057,0.1254024,85242.0,85241.0,0.1173238]
[1744817333653,0.00808,85242.0,85241.0,0.1173238]
[1744817333848,0.1254024,85242.0,85241.0,0.1173238]
[1744817336555,0.1173279,85238.0,85237.0,0.4781272]
[1744817336960,0.1173279,85238.0,85237.0,0.3608]
[1744817337161,0.1173334,85234.0,85233.0,0.11751077]
[1744817338665,0.0586641,85238.0,85237.0,0.1173293]
[1744817339364,0.0607441,85238.0,85237.0,0.1173293]
[1744817340757,0.2212441,85238.0,85237.0,0.1173293]
[1744817340971,0.1173334,85234.0,85233.0,0.11750927]
[1744817341461,0.2778334,85234.0,85233.0,0.11750927]
[1744817341669,0.2778334,85234.0,85233.0,0.15750927]
[1744817342565,0.2788334,85234.0,85233.0,0.15750927]
[1744817342764,0.2788334,85234.0,85233.0,0.04017597]
[1744817342960,0.1963334,85234.0,85233.0,0.11751077]
[1744817343669,0.1964134,85234.0,85233.0,0.11751077]
[1744817344071,0.2746134,85234.0,85233.0,0.11751077]
[1744817344865,0.2745334,85234.0,85233.0,0.11751077]
[1744817345261,0.2746134,85234.0,85233.0,0.11751077]
[1744817345462,0.2746134,85234.0,85233.0,0.00017597]
[1744817346062,0.2746134,85234.0,85233.0,0.11751077]
[1744817346469,0.1184134,85234.0,85233.0,0.11751077]
[1744817346970,0.1183334,85234.0,85233.0,0.11751077]
[1744817347266,0.1184134,85234.0,85233.0,0.11751077]
[1744817347659,0.1184134,85234.0,85233.0,0.19531077]
[1744817347869,0.2863134,85234.0,85233.0,0.19531077]
[1744817349172,0.1184134,85234.0,85233.0,0.19531077]
[1744817349575,0.1183334,85234.0,85233.0,0.27341077]
[1744817349872,0.2824134,85234.0,85233.0,0.15607597]
[1744817350075,0.2824134,85234.0,85233.0,0.27341077]
[1744817350368,0.2824134,85234.0,85233.0,0.15607597]
[1744817350782,0.2824134,85234.0,85233.0,0.27341077]
[1744817350976,0.00108,85234.0,85233.0,0.27341077]
[1744817351276,0.1184134,85234.0,85233.0,0.27341077]
[1744817351672,0.1183334,85234.0,85233.0,0.27341077]
[1744817351978,0.1184134,85234.0,85233.0,0.27341077]
[1744817352477,0.1174134,85234.0,85233.0,0.27341077]
[1744817352777,0.1174134,85234.0,85233.0,0.15707597]
[1744817353578,0.2006134,85234.0,85233.0,0.15607597]
[1744817353777,0.2016134,85234.0,85233.0,0.27341077]
[1744817354879,0.2016134,85234.0,85233.0,0.15607597]
[1744817355080,0.2834134,85234.0,85233.0,0.27341077]
[1744817355475,0.1184134,85234.0,85233.0,0.27341077]
[1744817355873,0.1174134,85234.0,85233.0,0.15607597]
[1744817356077,0.4493134,85234.0,85233.0,7e-08]
[1744817356273,0.7228134,85234.0,85233.0,7e-08]
[1744817356575,0.9738134,85234.0,85233.0,7e-08]
[1744817357278,0.7238134,85234.0,85233.0,7e-08]
[1744817358073,0.9738134,85234.0,85233.0,7e-08]
[1744817360672,1.3862134,85234.0,85233.0,7e-08]
[1744817361579,1.1362134,85234.0,85233.0,7e-08]
[1744817361879,1.1362134,85234.0,85212.0,0.08]
[1744817361880,0.1173623,85213.0,85212.0,0.08]
[1744817362086,0.4781623,85213.0,85212.0,0.08]
[1744817362388,0.1173789,85201.0,85200.0,0.2173801]
[1744817362584,0.1173789,85201.0,85200.0,0.3673801]
[1744817363087,0.1174589,85201.0,85200.0,0.3673801]
[1744817363781,0.1174589,85201.0,85200.0,0.5321801]
[1744817364487,0.1174589,85201.0,85200.0,0.4148]
[1744817364791,0.1174589,85201.0,85200.0,0.2648]
[1744817365285,0.1174589,85201.0,85200.0,0.1791]
[1744817365488,0.001,85201.0,85200.0,0.3054802]
[1744817365688,0.00108,85201.0,85200.0,0.3054802]
[1744817365890,0.00017597,85209.0,85208.0,0.1173692]
[1744817366082,0.00017597,85209.0,85208.0,0.2673692]
[1744817366481,0.11754377,85209.0,85208.0,0.3526692]
[1744817366783,0.11762377,85209.0,85208.0,0.3526692]
[1744817366977,0.11754377,85209.0,85208.0,0.3526692]
[1744817367177,0.11762377,85209.0,85208.0,0.3526692]
[1744817369182,0.11762377,85209.0,85208.0,0.2353]
[1744817369782,0.11762377,85209.0,85208.0,0.322]
[1744817371488,0.11762377,85209.0,85208.0,0.172]
[1744817371683,0.19772377,85209.0,85208.0,0.172]
[1744817372182,0.19772377,85209.0,85208.0,0.0853]
[1744817372578,0.28022377,85209.0,85208.0,0.0853]
[1744817373382,0.11754377,85209.0,85208.0,0.0883]
[1744817373689,0.11762377,85209.0,85208.0,0.0883]
[1744817374076,0.11754377,85209.0,85208.0,0.0883]
[1744817374484,0.11762377,85209.0,85208.0,0.0883]
[1744817374684,0.19812377,85209.0,85208.0,0.0883]
[1744817376081,0.28112377,85209.0,85208.0,0.0883]
[1744817376791,0.28112377,85209.0,85208.0,0.003]
[1744817377188,1.00272377,85209.0,85208.0,0.003]
[1744817378185,1.00272377,85209.0,85208.0,0.00174403]
[1744817380098,1.00264377,85209.0,85208.0,0.00174403]
[1744817380393,0.36105597,85209.0,85208.0,0.11911323]
[1744817380590,0.47842377,85209.0,85208.0,0.11911323]
[1744817380990,0.47834377,85209.0,85208.0,0.11911323]
[1744817381288,0.47834377,85209.0,85208.0,0.28411323]
[1744817381685,0.47842377,85209.0,85208.0,0.28411323]
[1744817381889,0.47834377,85209.0,85208.0,0.28411323]
[1744817382188,0.47842377,85209.0,85208.0,0.28411323]
[1744817382496,0.11762377,85209.0,85208.0,0.28411323]
[1744817382992,0.11754377,85209.0,85208.0,0.28411323]
[1744817383186,0.11762377,85209.0,85208.0,0.28411323]
[1744817384093,0.11762377,85209.0,85208.0,0.16674403]
[1744817384799,0.11762377,85209.0,85208.0,0.08384403]
[1744817385288,0.28122377,85209.0,85208.0,0.00174403]
[1744817385491,0.28122377,85209.0,85208.0,3e-08]
[1744817387286,0.19732377,85209.0,85208.0,3e-08]
[1744817387487,0.19724377,85209.0,85208.0,3e-08]
[1744817387690,0.19732377,85209.0,85208.0,3e-08]
[1744817389997,0.19732377,85209.0,85201.0,0.1673]
[1744817389998,0.1173775,85202.0,85201.0,0.2846786]
[1744817390192,0.4781775,85202.0,85201.0,0.2846786]
[1744817390399,0.4781775,85202.0,85201.0,0.1673]
[1744817391192,0.4781775,85202.0,85201.0,0.2846789]
[1744817391388,0.4781775,85202.0,85201.0,0.1713]
[1744817392197,0.4781775,85202.0,85201.0,0.2886789]
[1744817392701,0.4781775,85202.0,85201.0,0.1713]
[1744817393591,0.5615775,85202.0,85201.0,0.004]
[1744817393797,0.6439775,85202.0,85201.0,0.004]
[1744817394701,0.7269775,85202.0,85201.0,0.004]
[1744817395099,0.0586932,85196.0,85192.0,0.00017597]
[1744817395399,0.4781899,85193.0,85192.0,0.00017597]
[1744817395789,0.6515899,85193.0,85192.0,0.00017597]
[1744817396899,0.6516699,85193.0,85192.0,0.00017597]
[1744817397090,0.4782699,85193.0,85192.0,0.00017597]
[1744817397798,0.4782699,85193.0,85192.0,0.00217597]
[1744817398000,0.4781899,85193.0,85192.0,0.00217597]
[1744817398304,0.4781899,85193.0,85160.0,0.01124161]
[1744817398305,0.3608,85193.0,85160.0,0.01124161]
[1744817398502,0.6108,85193.0,85131.0,0.12104209]
[1744817398802,0.1948,85109.0,85064.0,0.3608]
[1744817399002,0.0116,85132.0,85065.0,1.69677469]
[1744817399003,0.3608,85089.0,85065.0,1.69677469]
[1744817399192,8e-05,85109.0,85083.0,0.3608]
[1744817399396,0.0587421,85125.0,85111.0,0.1175019]
[1744817399595,0.11752745,85113.0,85112.0,1.68428]
[1744817399794,8e-05,85125.0,85112.0,1.85428]
[1744817399996,0.2391224,85140.0,85112.0,2.12428]
[1744817400202,0.005,85138.0,85134.0,0.0587352]
[1744817400394,0.2391224,85150.0,85134.0,0.0587352]
[1744817400395,0.1174395,85158.0,85135.0,0.39506]
[1744817400595,0.3608,85149.0,85135.0,0.74506]
[1744817400819,0.1173981,85187.0,85160.0,0.0587176]
[1744817401028,0.3608,85173.0,85161.0,0.13276]
[1744817401335,0.3608,85180.0,85165.0,0.00017619]
[1744817401632,8e-05,85187.0,85182.0,0.0587021]
[1744817401826,0.058678,85218.0,85186.0,0.3608]
[1744817402033,0.26944935,85250.0,85222.0,0.0586745]
[1744817402331,0.4194548,85252.0,85232.0,0.1173362]
[1744817402332,0.3273039,85233.0,85232.0,0.1173362]
[1744817402626,0.3273039,85233.0,85223.0,0.31416]
[1744817402627,0.1173472,85224.0,85223.0,0.58876]
[1744817403218,0.0586711,85228.0,85215.0,0.00017608]
[1744817403423,0.3608,85216.0,85180.0,0.3608]
[1744817403622,0.3608,85194.0,85180.0,0.4908]
[1744817403926,0.1173875,85196.0,85187.0,0.3608]
[1744817404125,0.0586889,85202.0,85194.0,0.3608]
[1744817404325,0.1173881,85195.0,85194.0,0.5408]
[1744817404520,0.1173881,85195.0,85194.0,0.3608]